[Event "DVM U10 2024"]
[Site "Duesseldorf"]
[Date "2024.12.29"]
[Round "7"]
[White "Lankenau, Matteo Joel"]
[Black "Pereira, Jefferson Luis de S."]
[Result "1-0"]
[ECO "C50"]
[WhiteElo "1011"]
[BlackElo "1932"]
[Annotator "NA"]
[PlyCount "139"]
[EventDate "2024.12.23"]
[EventType "team-tourn"]
[EventRounds "7"]
[EventCountry "GER"]
[SourceTitle "playchess.com"]
[Source "ChessBase"]
[SourceQuality "1"]
[TimeControl "3300+5"]

1. e4 {[%emt 0:00:01]} e5 {[%emt 0:00:01]} 2. Nf3 {[%emt 0:00:04]} Nc6 {[%emt 0:00:05]} 3. Bc4 {[%emt 0:00:06]} Nf6 {[%emt 0:00:07]} 4. d3 {[%emt 0:00:10]} Bc5 {[%emt 0:00:09]} 5. Nc3 {[%emt 0:00:21]} d6 {[%emt 0:00:05]} 6. Bg5 {[%emt 0:00:16]} Bg4 {[%emt 0:00:37]} 7. Nd5 {[%emt 0:00:14]} h6 {[%emt 0:00:20]} 8. Nxf6+ {[%emt 0:00:59]} gxf6 {[%emt 0:00:22]} 9. Bh4 {[%emt 0:00:27]} Qe7 {[%emt 0:00:23]} 10. Bb5 {[%emt 0:00:40]} a6 {[%emt 0:01:10]} 11. Bxc6+ {[%emt 0:00:13]} bxc6 {[%emt 0:00:04]} 12. O-O {[%emt 0:00:21]} Qe6 {[%emt 0:05:52]} 13. h3 {[%emt 0:00:48]} Bxh3 {[%emt 0:00:45]} 14. Ne1 {[%emt 0:03:23]} Rg8 {[%emt 0:01:27]} 15. Qf3 {[%emt 0:01:05]} Rb8 {[%emt 0:03:26]} 16. b3 {[%emt 0:00:19]} Bb4 {[%emt 0:01:03]} 17. Kh1 {[%emt 0:04:40]} Bxe1 {[%emt 0:01:18]} 18. gxh3 {[%emt 0:01:45]} Bc3 {[%emt 0:00:57]} 19. Rab1 {[%emt 0:01:30]} d5 {[%emt 0:02:27]} 20. Rg1 {[%emt 0:00:33]} Kd7 {[%emt 0:00:17]} 21. Rxg8 {[%emt 0:00:25]} Rxg8 {[%emt 0:00:03]} 22. Rg1 {[%emt 0:00:10]} Rxg1+ {[%emt 0:01:44]} 23. Kxg1 {[%emt 0:00:05]} a5 {[%emt 0:00:21]} 24. Bxf6 {[%emt 0:00:41]} dxe4 {[%emt 0:00:21]} 25. dxe4 {[%emt 0:00:44]} Bd4 {[%emt 0:01:30]} 26. Kg2 {[%emt 0:03:56]} a4 {[%emt 0:00:26]} 27. Qf5 {[%emt 0:01:09]} Qxf5 {[%emt 0:00:21]} 28. exf5 {[%emt 0:01:06]} axb3 {[%emt 0:00:02]} 29. axb3 {[%emt 0:00:11]} Kd6 {[%emt 0:00:21]} 30. Bg7 {[%emt 0:00:25]} Ke7 {[%emt 0:00:31]} 31. Bxh6 {[%emt 0:00:38]} Kf6 {[%emt 0:00:07]} 32. Be3 {[%emt 0:00:59]} Bxe3 {[%emt 0:00:01]} 33. fxe3 {[%emt 0:00:10]} Kxf5 {[%emt 0:00:01]} 34. Kf3 {[%emt 0:00:16]} Kg5 {[%emt 0:00:40]} 35. e4 {[%emt 0:00:41]} Kh4 {[%emt 0:00:17]} 36. Kg2 {[%emt 0:00:16]} f6 {[%emt 0:00:08]} 37. b4 {[%emt 0:01:07]} Kg5 {[%emt 0:00:06]} 38. Kf3 {[%emt 0:00:17]} f5 {[%emt 0:00:06]} 39. exf5 {[%emt 0:00:09]} Kxf5 {[%emt 0:00:09]} 40. h4 {[%emt 0:00:54]} e4+ {[%emt 0:00:46]} 41. Ke3 {[%emt 0:00:12]} Ke5 {[%emt 0:02:15]} 42. h5 {[%emt 0:00:33]} Kf5 {[%emt 0:00:08]} 43. h6 {[%emt 0:00:11]} Kg6 {[%emt 0:00:31]} 44. Kxe4 {[%emt 0:00:29]} Kxh6 {[%emt 0:00:07]} 45. Ke5 {[%emt 0:00:24]} Kg7 {[%emt 0:24:39]} 46. Ke6 {[%emt 0:00:09]} Kf8 {[%emt 0:00:02]} 47. Kd7 {[%emt 0:00:15]} Kf7 {[%emt 0:00:05]} 48. Kxc6 {[%emt 0:00:15]} Ke6 49. b5 {[%emt 0:00:31]} Ke5 {[%emt 0:00:12]} 50. Kxc7 {[%emt 0:00:10]} Kd4 51. b6 {[%emt 0:00:11]} Kc3 52. b7 {[%emt 0:00:31]} Kxc2 {[%emt 0:00:13]} 53. b8=Q {[%emt 0:00:19]} Kc3 {[%emt 0:00:02]} 54. Qb5 {[%emt 0:00:11]} Kd4 {[%emt 0:00:01]} 55. Qc6 {[%emt 0:00:29]} Ke5 {[%emt 0:00:03]} 56. Qd7 {[%emt 0:00:23]} Kf6 {[%emt 0:00:11]} 57. Qe8 {[%emt 0:00:35]} Kf5 {[%emt 0:00:04]} 58. Qe7 {[%emt 0:00:11]} Kg6 {[%emt 0:00:01]} 59. Qf8 {[%emt 0:00:08]} Kg5 {[%emt 0:00:03]} 60. Qf7 {[%emt 0:00:28]} Kg4 {[%emt 0:00:03]} 61. Qf6 {[%emt 0:00:12]} Kg3 {[%emt 0:00:03]} 62. Qf5 {[%emt 0:00:28]} Kg2 {[%emt 0:00:00]} 63. Qf4 {[%emt 0:00:11]} Kg1 {[%emt 0:00:06]} 64. Qf3 {[%emt 0:00:28]} Kh2 {[%emt 0:00:00]} 65. Qg4 {[%emt 0:00:09]} Kh1 {[%emt 0:00:05]} 66. Kd6 {[%emt 0:00:19]} Kh2 {[%emt 0:00:02]} 67. Ke5 {[%emt 0:00:10]} Kh1 {[%emt 0:00:01]} 68. Kf4 {[%emt 0:00:09]} Kh2 {[%emt 0:00:02]} 69. Kf3 {[%emt 0:00:11]} Kh1 {[%emt 0:00:00]} 70. Qg2# {[%emt 0:00:06]} 1-0

[Event "DVM U10 2024"]
[Site "Duesseldorf"]
[Date "2024.12.29"]
[Round "7"]
[White "Kolesnikoff, Christophe"]
[Black "Studdert, Levi"]
[Result "1-0"]
[ECO "B07"]
[WhiteElo "980"]
[BlackElo "1234"]
[Annotator "NA"]
[PlyCount "145"]
[EventDate "2024.12.23"]
[EventType "team-tourn"]
[EventRounds "7"]
[EventCountry "GER"]
[SourceTitle "playchess.com"]
[Source "ChessBase"]
[SourceQuality "1"]
[TimeControl "3300+5"]

1. e4 {[%emt 0:00:02]} d6 {[%emt 0:01:02]} 2. Nf3 {[%emt 0:00:30]} Nf6 {[%emt 0:00:15]} 3. Nc3 {[%emt 0:00:31]} g6 {[%emt 0:01:09]} 4. Bc4 {[%emt 0:01:19]} Bg7 {[%emt 0:00:17]} 5. d3 {[%emt 0:00:47]} O-O {[%emt 0:00:10]} 6. Be3 {[%emt 0:00:31]} Nbd7 {[%emt 0:01:34]} 7. Qd2 {[%emt 0:00:24]} c5 {[%emt 0:02:46]} 8. O-O-O {[%emt 0:01:44]} e5 {[%emt 0:01:27]} 9. Bh6 {[%emt 0:01:27]} a6 {[%emt 0:00:44]} 10. Bd5 {[%emt 0:01:17]} Nb6 {[%emt 0:00:31]} 11. h3 {[%emt 0:02:24]} Be6 {[%emt 0:01:05]} 12. Bxb7 {[%emt 0:00:57]} Ra7 {[%emt 0:00:25]} 13. Bxg7 {[%emt 0:00:54]} Kxg7 {[%emt 0:00:39]} 14. Bc6 {[%emt 0:00:42]} Qc7 {[%emt 0:01:37]} 15. Ba4 {[%emt 0:03:40]} Qb7 {[%emt 0:07:09]} 16. g4 {[%emt 0:02:17]} Nxe4 {[%emt 0:01:02]} 17. Nxe4 {[%emt 0:06:11]} Nxa4 {[%emt 0:00:24]} 18. b3 {[%emt 0:00:49]} Nb6 {[%emt 0:02:34]} 19. Nfg5 {[%emt 0:03:36]} Qe7 {[%emt 0:05:11]} 20. f4 {[%emt 0:01:30]} f5 {[%emt 0:03:29]} 21. Nf2 {[%emt 0:02:01]} exf4 {[%emt 0:04:17]} 22. Nxe6+ {[%emt 0:01:06]} Qxe6 {[%emt 0:02:24]} 23. Qxf4 {[%emt 0:01:44]} fxg4 {[%emt 0:01:39]} 24. Qg3 {[%emt 0:00:48]} gxh3 {[%emt 0:01:34]} 25. Nxh3 {[%emt 0:00:26]} Qe5 {[%emt 0:01:26]} 26. Qxe5+ {[%emt 0:01:25]} dxe5 {[%emt 0:00:38]} 27. Ng5 {[%emt 0:00:14]} Kg8 {[%emt 0:01:23]} 28. Rh2 {[%emt 0:00:40]} Nd7 {[%emt 0:02:08]} 29. Rdh1 {[%emt 0:00:18]} Nf6 {[%emt 0:00:40]} 30. Ne6 {[%emt 0:01:02]} Rc8 {[%emt 0:00:29]} 31. Kd2 {[%emt 0:03:12]} Re7 {[%emt 0:01:26]} 32. Ng5 {[%emt 0:00:31]} Rce8 {[%emt 0:01:08]} 33. Kc3 {[%emt 0:00:37]} h5 {[%emt 0:00:48]} 34. Kc4 {[%emt 0:00:16]} Rc7 {[%emt 0:00:23]} 35. Rf1 {[%emt 0:00:22]} Ng4 {[%emt 0:00:21]} 36. Re2 {[%emt 0:00:40]} Kg7 {[%emt 0:00:29]} 37. a4 {[%emt 0:00:20]} Rd8 {[%emt 0:00:37]} 38. Ne6+ {[%emt 0:00:10]} Kh6 {[%emt 0:00:19]} 39. Nxc7 {[%emt 0:00:27]} h4 {[%emt 0:00:15]} 40. Ne6 {[%emt 0:00:27]} Rc8 {[%emt 0:00:21]} 41. Rh1 {[%emt 0:00:14]} g5 {[%emt 0:00:10]} 42. Re4 {[%emt 0:00:25]} Nf2 {[%emt 0:00:07]} 43. Rhxh4+ {[%emt 0:01:11]} gxh4 {[%emt 0:00:06]} 44. Rxh4+ {[%emt 0:00:07]} Kg6 {[%emt 0:00:02]} 45. Rh2 {[%emt 0:00:36]} Ng4 {[%emt 0:00:11]} 46. Rg2 {[%emt 0:00:15]} Kf5 {[%emt 0:00:16]} 47. Ng7+ {[%emt 0:00:30]} Kf4 {[%emt 0:00:28]} 48. Ne6+ {[%emt 0:00:08]} Kf5 {[%emt 0:00:03]} 49. Ng7+ {[%emt 0:00:10]} Kf4 {[%emt 0:00:20]} 50. Nh5+ {[%emt 0:00:14]} Kf3 {[%emt 0:00:17]} 51. Rg3+ {[%emt 0:00:04]} Kf2 {[%emt 0:00:14]} 52. Rxg4 {[%emt 0:00:06]} Kf3 {[%emt 0:00:03]} 53. Rg3+ {[%emt 0:00:11]} Kf2 {[%emt 0:00:04]} 54. Kd5 {[%emt 0:00:10]} Rh8 {[%emt 0:00:12]} 55. Rg5 {[%emt 0:00:14]} Kf3 {[%emt 0:00:13]} 56. Kxe5 {[%emt 0:00:03]} Re8+ {[%emt 0:00:10]} 57. Kd5 {[%emt 0:00:04]} Rd8+ {[%emt 0:00:08]} 58. Kxc5 {[%emt 0:00:11]} Rc8+ {[%emt 0:00:02]} 59. Kb6 {[%emt 0:00:14]} Rxc2 {[%emt 0:00:03]} 60. Kxa6 {[%emt 0:00:14]} Rc3 {[%emt 0:00:15]} 61. Rf5+ {[%emt 0:00:04]} Kg4 {[%emt 0:00:03]} 62. Rb5 {[%emt 0:00:09]} Rxd3 {[%emt 0:00:06]} 63. Nf6+ {[%emt 0:00:30]} Kf4 {[%emt 0:00:06]} 64. Nh5+ {[%emt 0:00:10]} Ke4 {[%emt 0:00:07]} 65. Rb4+ {[%emt 0:00:10]} Ke3 {[%emt 0:00:13]} 66. a5 {[%emt 0:00:08]} Kd2 {[%emt 0:00:04]} 67. Kb5 {[%emt 0:00:09]} Rd5+ {[%emt 0:00:10]} 68. Ka4 {[%emt 0:00:06]} Rxh5 {[%emt 0:00:07]} 69. a6 {[%emt 0:00:09]} Rh8 {[%emt 0:00:03]} 70. Ka5 {[%emt 0:00:09]} Kc3 {[%emt 0:00:06]} 71. Rb7 {[%emt 0:00:11]} Kd4 {[%emt 0:00:08]} 72. a7 {[%emt 0:00:08]} Kc5 {[%emt 0:00:07]} 73. Rb6 {[%emt 0:00:16]} 1-0

[Event "DVM U10 2024"]
[Site "Duesseldorf"]
[Date "2024.12.29"]
[Round "7"]
[White "Sandros Izzi, Diego"]
[Black "Liu, Siyuan B"]
[Result "1/2-1/2"]
[ECO "C55"]
[WhiteElo "975"]
[BlackElo "1687"]
[Annotator "NA"]
[PlyCount "186"]
[EventDate "2024.12.23"]
[EventType "team-tourn"]
[EventRounds "7"]
[EventCountry "GER"]
[SourceTitle "playchess.com"]
[Source "ChessBase"]
[SourceQuality "1"]
[TimeControl "3300+5"]

1. e4 {[%emt 0:00:01]} e5 {[%emt 0:00:07]} 2. Nf3 {[%emt 0:00:04]} Nc6 {[%emt 0:00:07]} 3. Bc4 {[%emt 0:00:08]} Nf6 {[%emt 0:00:11]} 4. Nc3 {[%emt 0:00:09]} Bb4 {[%emt 0:00:12]} 5. a3 {[%emt 0:00:07]} Bc5 {[%emt 0:00:11]} 6. d3 {[%emt 0:00:29]} a6 {[%emt 0:00:05]} 7. Bg5 {[%emt 0:00:12]} b5 {[%emt 0:00:07]} 8. Bxf6 {[%emt 0:00:13]} Qxf6 {[%emt 0:00:06]} 9. Nd5 {[%emt 0:00:20]} Qd6 {[%emt 0:00:18]} 10. Ba2 {[%emt 0:00:24]} Ne7 {[%emt 0:00:14]} 11. O-O {[%emt 0:00:16]} Nxd5 {[%emt 0:00:10]} 12. Bxd5 {[%emt 0:00:07]} c6 {[%emt 0:00:06]} 13. Ba2 {[%emt 0:00:16]} O-O {[%emt 0:00:07]} 14. Ng5 {[%emt 0:00:17]} h6 {[%emt 0:00:49]} 15. Nf3 {[%emt 0:00:08]} Qg6 {[%emt 0:00:18]} 16. Nxe5 {[%emt 0:01:02]} Qf6 {[%emt 0:00:24]} 17. d4 {[%emt 0:00:17]} Bd6 {[%emt 0:00:15]} 18. Ng4 {[%emt 0:00:20]} Qf4 {[%emt 0:00:23]} 19. g3 {[%emt 0:00:29]} Qxe4 {[%emt 0:00:21]} 20. Re1 {[%emt 0:00:38]} Qf5 {[%emt 0:00:22]} 21. Re3 {[%emt 0:02:00]} Bc7 {[%emt 0:00:24]} 22. c3 {[%emt 0:00:18]} d5 {[%emt 0:00:06]} 23. f3 {[%emt 0:00:35]} Bb6 {[%emt 0:00:43]} 24. Qe2 {[%emt 0:00:10]} Be6 {[%emt 0:00:12]} 25. Bb1 {[%emt 0:00:26]} Qg5 {[%emt 0:00:23]} 26. Re5 {[%emt 0:00:19]} Qc1+ {[%emt 0:00:29]} 27. Kg2 {[%emt 0:00:45]} Bxg4 {[%emt 0:00:15]} 28. fxg4 {[%emt 0:00:19]} Bc7 {[%emt 0:00:13]} 29. Qd3 {[%emt 0:00:32]} g6 {[%emt 0:00:25]} 30. Re2 {[%emt 0:01:27]} Qg5 {[%emt 0:00:24]} 31. Qf3 {[%emt 0:00:59]} Rae8 {[%emt 0:00:48]} 32. Rxe8 {[%emt 0:00:20]} Rxe8 {[%emt 0:00:08]} 33. h4 {[%emt 0:00:13]} Qe7 {[%emt 0:00:17]} 34. Bd3 {[%emt 0:00:17]} Qe3 {[%emt 0:00:38]} 35. Qxe3 {[%emt 0:00:27]} Rxe3 {[%emt 0:00:09]} 36. Rd1 {[%emt 0:00:34]} Bxg3 {[%emt 0:00:23]} 37. h5 {[%emt 0:00:14]} g5 {[%emt 0:00:44]} 38. Bf5 {[%emt 0:00:29]} Bh4 {[%emt 0:00:17]} 39. Rd3 {[%emt 0:00:33]} Re2+ {[%emt 0:00:15]} 40. Kf3 {[%emt 0:00:35]} Rf2+ {[%emt 0:00:07]} 41. Ke3 {[%emt 0:00:06]} Rxb2 {[%emt 0:00:12]} 42. Bd7 {[%emt 0:00:07]} Bf2+ {[%emt 0:00:24]} 43. Kf3 {[%emt 0:00:10]} Be1 {[%emt 0:00:22]} 44. Bxc6 {[%emt 0:00:16]} Rb3 {[%emt 0:00:55]} 45. Bxd5 {[%emt 0:00:37]} Rxa3 {[%emt 0:00:14]} 46. Ke2 {[%emt 0:01:15]} Bxc3 {[%emt 0:00:27]} 47. Kd1 {[%emt 0:00:18]} Ra1+ {[%emt 0:00:18]} 48. Kc2 {[%emt 0:00:11]} b4 {[%emt 0:00:12]} 49. Bb3 {[%emt 0:00:20]} a5 {[%emt 0:00:09]} 50. d5 {[%emt 0:00:09]} Kf8 {[%emt 0:00:15]} 51. Re3 {[%emt 0:00:17]} a4 {[%emt 0:00:01]} 52. Bc4 {[%emt 0:00:16]} a3 {[%emt 0:00:20]} 53. d6 {[%emt 0:00:04]} Rf1 {[%emt 0:00:46]} 54. d7 {[%emt 0:00:12]} Rf2+ {[%emt 0:00:09]} 55. Be2 {[%emt 0:00:37]} Bf6 {[%emt 0:00:02]} 56. Kb3 {[%emt 0:00:24]} Rf4 {[%emt 0:00:41]} 57. Re8+ {[%emt 0:00:29]} Kg7 {[%emt 0:00:09]} 58. d8=Q Bxd8 59. Rxd8 {[%emt 0:01:53]} Re4 {[%emt 0:00:13]} 60. Rd2 {[%emt 0:00:56]} Rf4 {[%emt 0:00:37]} 61. Ka2 {[%emt 0:01:02]} Re4 {[%emt 0:00:12]} 62. Bf3 {[%emt 0:01:12]} Re3 {[%emt 0:00:10]} 63. Rf2 {[%emt 0:00:59]} Kf6 {[%emt 0:00:21]} 64. Bd5+ {[%emt 0:00:20]} Ke5 {[%emt 0:00:16]} 65. Bxf7 {[%emt 0:00:47]} Kd4 {[%emt 0:00:10]} 66. Bg6 {[%emt 0:00:56]} Rc3 {[%emt 0:00:22]} 67. Rd2+ {[%emt 0:00:40]} Kc4 {[%emt 0:00:02]} 68. Bf7+ {[%emt 0:00:25]} Kb5 {[%emt 0:00:10]} 69. Rd5+ {[%emt 0:00:45]} Rc5 {[%emt 0:00:11]} 70. Rxc5+ {[%emt 0:01:27]} Kxc5 {[%emt 0:00:09]} 71. Kb3 {[%emt 0:00:08]} Kb5 {[%emt 0:00:17]} 72. Kc2 {[%emt 0:00:40]} Kc5 {[%emt 0:00:17]} 73. Kd3 {[%emt 0:00:11]} Kb5 {[%emt 0:00:21]} 74. Ke4 {[%emt 0:01:23]} Kc5 {[%emt 0:00:15]} 75. Kf5 {[%emt 0:00:00]} Kd4 {[%emt 0:00:10]} 76. Kg6 {[%emt 0:00:00]} Kc3 {[%emt 0:00:07]} 77. Kxh6 {[%emt 0:00:00]} b3 {[%emt 0:00:08]} 78. Kxg5 {[%emt 0:00:28]} a2 {[%emt 0:00:10]} 79. Bxb3 {[%emt 0:00:16]} Kxb3 {[%emt 0:00:07]} 80. Kh6 {[%emt 0:00:05]} a1=Q {[%emt 0:00:09]} 81. g5 {[%emt 0:00:04]} Qa6+ {[%emt 0:00:12]} 82. g6 {[%emt 0:00:11]} Qf6 {[%emt 0:00:15]} 83. Kh7 {[%emt 0:00:16]} Qe7+ {[%emt 0:00:29]} 84. g7 {[%emt 0:00:15]} Qf7 {[%emt 0:00:09]} 85. h6 {[%emt 0:00:09]} Qf5+ {[%emt 0:00:13]} 86. Kh8 {[%emt 0:00:09]} Qf6 {[%emt 0:00:11]} 87. Kh7 {[%emt 0:00:37]} Qf5+ {[%emt 0:00:10]} 88. Kg8 {[%emt 0:00:30]} Qd7 {[%emt 0:00:35]} 89. Kh8 {[%emt 0:00:25]} Qd4 {[%emt 0:00:13]} 90. h7 {[%emt 0:01:05]} Qf6 {[%emt 0:00:17]} 91. Kg8 {[%emt 0:00:20]} Qd8+ {[%emt 0:00:10]} 92. Kf7 {[%emt 0:00:10]} Qd7+ {[%emt 0:00:12]} 93. Kg6 {[%emt 0:01:03]} Qe6+ {[%emt 0:00:12]} 1/2-1/2

[Event "DVM U10 2024"]
[Site "Duesseldorf"]
[Date "2024.12.29"]
[Round "7"]
[White "Wüstenberg, Felix"]
[Black "Özdemir, Anna Valentina"]
[Result "1-0"]
[ECO "C50"]
[WhiteElo "975"]
[BlackElo "954"]
[Annotator "NA"]
[PlyCount "59"]
[EventDate "2024.12.23"]
[EventType "team-tourn"]
[EventRounds "7"]
[EventCountry "GER"]
[SourceTitle "playchess.com"]
[Source "ChessBase"]
[SourceQuality "1"]
[TimeControl "3300+5"]

1. e4 {[%emt 0:00:00]} e5 {[%emt 0:00:06]} 2. Nf3 {[%emt 0:00:06]} Nc6 {[%emt 0:00:07]} 3. Bc4 {[%emt 0:00:06]} Bc5 {[%emt 0:00:08]} 4. Nc3 {[%emt 0:00:05]} Nf6 {[%emt 0:00:08]} 5. d3 {[%emt 0:00:03]} O-O {[%emt 0:00:10]} 6. Bg5 {[%emt 0:00:04]} h6 {[%emt 0:00:17]} 7. Bh4 {[%emt 0:00:04]} Be7 {[%emt 0:00:22]} 8. O-O {[%emt 0:00:12]} d6 {[%emt 0:00:04]} 9. h3 {[%emt 0:00:13]} a6 {[%emt 0:00:57]} 10. Bb3 {[%emt 0:00:05]} Be6 {[%emt 0:00:55]} 11. Qd2 {[%emt 0:00:08]} Qd7 {[%emt 0:01:34]} 12. Nd5 {[%emt 0:00:13]} Bxd5 {[%emt 0:00:55]} 13. exd5 {[%emt 0:00:09]} Nd4 {[%emt 0:01:15]} 14. Nxd4 {[%emt 0:00:05]} exd4 {[%emt 0:00:10]} 15. Rfe1 {[%emt 0:00:04]} Rfe8 {[%emt 0:00:43]} 16. Re2 {[%emt 0:00:05]} b5 {[%emt 0:01:08]} 17. a3 {[%emt 0:00:20]} a5 {[%emt 0:01:37]} 18. Rf1 {[%emt 0:00:09]} a4 {[%emt 0:00:06]} 19. Ba2 {[%emt 0:00:05]} c6 {[%emt 0:01:18]} 20. dxc6 {[%emt 0:00:24]} Qxc6 {[%emt 0:00:11]} 21. Rfe1 {[%emt 0:00:20]} Ra7 {[%emt 0:00:46]} 22. Bxf6 {[%emt 0:00:24]} gxf6 {[%emt 0:01:03]} 23. Qxh6 {[%emt 0:00:09]} d5 {[%emt 0:03:24]} 24. Qh5 {[%emt 0:00:07]} Qd7 {[%emt 0:02:43]} 25. Bxd5 {[%emt 0:00:33]} Kg7 {[%emt 0:02:41]} 26. Qxf7+ {[%emt 0:00:09]} Kh8 {[%emt 0:00:23]} 27. Qg6 {[%emt 0:00:16]} Qxd5 {[%emt 0:01:27]} 28. Qxe8+ {[%emt 0:00:04]} Qg8 {[%emt 0:00:49]} 29. Qc6 {[%emt 0:00:36]} Qg7 {[%emt 0:02:25]} 30. Qb6 {[%emt 0:05:10]} 1-0

[Event "DVM U10 2024"]
[Site "Duesseldorf"]
[Date "2024.12.29"]
[Round "7"]
[White "Holzhäuser, Thibaut Lautaro"]
[Black "Saloum, Michael"]
[Result "0-1"]
[ECO "C59"]
[WhiteElo "955"]
[BlackElo "1067"]
[Annotator "NA"]
[PlyCount "120"]
[EventDate "2024.12.23"]
[EventType "team-tourn"]
[EventRounds "7"]
[EventCountry "GER"]
[SourceTitle "playchess.com"]
[Source "ChessBase"]
[SourceQuality "1"]
[TimeControl "3300+5"]

1. e4 {[%emt 0:00:01]} e5 {[%emt 0:00:11]} 2. Nf3 {[%emt 0:00:32]} Nc6 {[%emt 0:00:18]} 3. Bc4 {[%emt 0:00:04]} Nf6 {[%emt 0:00:12]} 4. Ng5 {[%emt 0:00:02]} d5 {[%emt 0:00:27]} 5. exd5 {[%emt 0:00:06]} Na5 {[%emt 0:00:36]} 6. Bb5+ {[%emt 0:00:07]} c6 {[%emt 0:00:15]} 7. dxc6 {[%emt 0:00:04]} bxc6 {[%emt 0:00:08]} 8. Be2 {[%emt 0:00:15]} h6 {[%emt 0:04:32]} 9. Nf3 {[%emt 0:00:17]} Bd6 {[%emt 0:01:03]} 10. d3 {[%emt 0:00:12]} O-O {[%emt 0:00:53]} 11. Nc3 {[%emt 0:00:06]} Nd5 {[%emt 0:01:07]} 12. Bd2 {[%emt 0:01:54]} Re8 {[%emt 0:01:24]} 13. O-O {[%emt 0:00:08]} Ba6 {[%emt 0:01:41]} 14. Rb1 {[%emt 0:01:51]} Rb8 {[%emt 0:02:40]} 15. Re1 {[%emt 0:00:31]} Bb7 {[%emt 0:04:07]} 16. Ne4 {[%emt 0:00:45]} Bc7 {[%emt 0:01:48]} 17. c4 {[%emt 0:01:01]} Nf6 {[%emt 0:04:30]} 18. Nxf6+ {[%emt 0:00:30]} Qxf6 {[%emt 0:00:07]} 19. Bc3 {[%emt 0:00:10]} c5 {[%emt 0:01:35]} 20. b4 {[%emt 0:01:04]} cxb4 {[%emt 0:01:19]} 21. Bxb4 {[%emt 0:00:23]} Red8 {[%emt 0:02:32]} 22. Qc2 {[%emt 0:00:16]} Nc6 {[%emt 0:04:12]} 23. Bc3 {[%emt 0:00:02]} Nd4 {[%emt 0:00:09]} 24. Bxd4 {[%emt 0:00:27]} exd4 {[%emt 0:00:15]} 25. Qd1 {[%emt 0:01:17]} Re8 {[%emt 0:00:43]} 26. Rb2 {[%emt 0:01:54]} Bb6 {[%emt 0:00:52]} 27. Kf1 {[%emt 0:02:04]} Ba5 {[%emt 0:00:48]} 28. Nd2 {[%emt 0:00:17]} Bxg2+ {[%emt 0:00:29]} 29. Kxg2 {[%emt 0:00:58]} Rxb2 {[%emt 0:00:22]} 30. Ne4 {[%emt 0:00:14]} Qg6+ {[%emt 0:00:51]} 31. Kh1 {[%emt 0:00:18]} Bxe1 {[%emt 0:00:06]} 32. Qxe1 {[%emt 0:00:08]} Qc6 {[%emt 0:01:07]} 33. Kg2 {[%emt 0:00:34]} f5 {[%emt 0:00:17]} 34. Bf3 {[%emt 0:00:12]} fxe4 {[%emt 0:00:34]} 35. Bxe4 {[%emt 0:00:02]} Rxa2 {[%emt 0:01:36]} 36. h3 {[%emt 0:00:16]} Qf6 {[%emt 0:01:40]} 37. Bd5+ {[%emt 0:00:30]} Kf8 {[%emt 0:00:19]} 38. Be4 {[%emt 0:00:11]} Qg5+ {[%emt 0:00:28]} 39. Kf1 {[%emt 0:00:33]} Qd2 {[%emt 0:00:41]} 40. Qxd2 {[%emt 0:00:14]} Rxd2 {[%emt 0:00:09]} 41. Kg2 {[%emt 0:00:32]} a5 {[%emt 0:00:17]} 42. Bc6 {[%emt 0:00:46]} Ree2 43. Kf3 {[%emt 0:00:00]} Rxf2+ {[%emt 0:00:36]} 44. Ke4 {[%emt 0:00:02]} Rh2 {[%emt 0:00:30]} 45. Bd7 {[%emt 0:00:15]} Ke7 {[%emt 0:00:18]} 46. Ba4 {[%emt 0:00:07]} Rxh3 {[%emt 0:00:20]} 47. Kxd4 {[%emt 0:00:09]} Rhxd3+ {[%emt 0:00:07]} 48. Kc5 {[%emt 0:00:06]} Rh3 {[%emt 0:00:22]} 49. Kb5 {[%emt 0:00:14]} Rh5+ {[%emt 0:00:30]} 50. c5 {[%emt 0:00:02]} Rb2+ {[%emt 0:00:14]} 51. Kc4 {[%emt 0:00:24]} Rh4+ {[%emt 0:00:22]} 52. Kd5 {[%emt 0:00:05]} Rd2+ {[%emt 0:00:27]} 53. Kc6 {[%emt 0:00:11]} Rxa4 {[%emt 0:00:13]} 54. Kb5 {[%emt 0:00:16]} Ra1 {[%emt 0:00:44]} 55. Kc6 {[%emt 0:00:10]} Rc1 {[%emt 0:00:21]} 56. Kb6 {[%emt 0:00:05]} Kd7 {[%emt 0:00:29]} 57. Kb5 {[%emt 0:00:27]} Rb2+ {[%emt 0:00:10]} 58. Ka6 {[%emt 0:00:06]} Rxc5 {[%emt 0:00:23]} 59. Ka7 {[%emt 0:00:18]} a4 {[%emt 0:00:08]} 60. Ka8 {[%emt 0:00:08]} a3 {[%emt 0:00:11]} 0-1

[Event "DVM U10 2024"]
[Site "Duesseldorf"]
[Date "2024.12.29"]
[Round "7"]
[White "Krupp, Jonathan"]
[Black "Haberger, Nino"]
[Result "0-1"]
[ECO "C10"]
[WhiteElo "941"]
[BlackElo "1098"]
[Annotator "NA"]
[PlyCount "54"]
[EventDate "2024.12.23"]
[EventType "team-tourn"]
[EventRounds "7"]
[EventCountry "GER"]
[SourceTitle "playchess.com"]
[Source "ChessBase"]
[SourceQuality "1"]
[TimeControl "3300+5"]

1. e4 {[%emt 0:00:00]} e6 {[%emt 0:00:02]} 2. Nc3 {[%emt 0:00:07]} d5 {[%emt 0:00:05]} 3. d4 {[%emt 0:00:06]} dxe4 {[%emt 0:00:07]} 4. Nxe4 {[%emt 0:00:06]} Bd7 {[%emt 0:00:10]} 5. Nf3 {[%emt 0:00:16]} Nc6 {[%emt 0:00:11]} 6. Bb5 {[%emt 0:00:16]} Be7 {[%emt 0:00:12]} 7. Bg5 {[%emt 0:00:56]} Bxg5 {[%emt 0:00:21]} 8. Nexg5 {[%emt 0:00:32]} h6 {[%emt 0:00:15]} 9. Ne4 {[%emt 0:00:11]} Nf6 {[%emt 0:00:13]} 10. Qe2 {[%emt 0:01:48]} a6 {[%emt 0:00:27]} 11. Ba4 {[%emt 0:00:13]} Nxd4 {[%emt 0:02:03]} 12. Bxd7+ {[%emt 0:00:28]} Qxd7 {[%emt 0:00:11]} 13. Qd3 {[%emt 0:00:44]} Nxf3+ {[%emt 0:00:10]} 14. Qxf3 {[%emt 0:02:09]} Nxe4 {[%emt 0:00:42]} 15. Qxe4 {[%emt 0:00:08]} Qb5 {[%emt 0:00:27]} 16. b4 {[%emt 0:02:43]} O-O-O {[%emt 0:01:38]} 17. c3 {[%emt 0:00:46]} Qd7 {[%emt 0:00:57]} 18. O-O {[%emt 0:02:03]} Qd3 {[%emt 0:00:31]} 19. Qxd3 {[%emt 0:00:37]} Rxd3 {[%emt 0:00:08]} 20. Rac1 {[%emt 0:01:01]} Rd2 {[%emt 0:00:15]} 21. a4 {[%emt 0:00:42]} Rhd8 {[%emt 0:00:27]} 22. a5 {[%emt 0:00:52]} Rb2 {[%emt 0:00:18]} 23. Rfd1 {[%emt 0:01:13]} Rxd1+ {[%emt 0:00:12]} 24. Rxd1 {[%emt 0:00:07]} Rc2 {[%emt 0:00:10]} 25. Rd3 {[%emt 0:01:01]} Rc1+ {[%emt 0:00:14]} 26. Rd1 {[%emt 0:01:19]} Rc2 27. Rd3 {[%emt 0:00:12]} Rc1+ {[%emt 0:00:02]} 0-1